[Event "Titled Tuesday Blitz January 31 Early 2023"]
[White "Le Ruyet, Leopold"]
[Black "Hrbek, Stepan"]
[WhiteFideId "645923"]
[BlackFideId "393479"]
[WhiteElo "2245"]
[BlackElo "2306"]
[Result "1-0"]
[Round "02"]
[TimeControl "180+2"]
[Date "2023.01.31"]
[WhiteClock "0:00:35"]
[BlackClock "0:00:01"]

1. e4 {[%clk 0:03:00]}  c5 {[%clk 0:02:59]} 2. Nc3 {[%clk 0:02:58]}  Nc6 {[%clk 0:02:58]} 3. Bb5 {[%clk 0:02:57]}  Nd4 {[%clk 0:02:58]} 4. Nf3 {[%clk 0:02:57]}  a6 {[%clk 0:02:56]} 5. Bd3 {[%clk 0:02:57]}  Nc6 {[%clk 0:02:46]} 6. e5 {[%clk 0:02:57]}  g6 {[%clk 0:02:44]} 7. O-O {[%clk 0:02:56]}  Bg7 {[%clk 0:02:44]} 8. Re1 {[%clk 0:02:56]}  d5 {[%clk 0:02:28]} 9. exd6 {[%clk 0:02:56]}  Qxd6 {[%clk 0:02:28]} 10. Ne4 {[%clk 0:02:55]}  Qd5 {[%clk 0:02:29]} 11. Qe2 {[%clk 0:02:50]}  Nf6 {[%clk 0:02:07]} 12. c3 {[%clk 0:02:37]}  O-O {[%clk 0:02:02]} 13. Bc2 {[%clk 0:02:17]}  Bf5 {[%clk 0:01:56]} 14. d3 {[%clk 0:02:12]}  b6 {[%clk 0:01:47]} 15. Bg5 {[%clk 0:02:00]}  Ng4 {[%clk 0:01:05]} 16. Ng3 {[%clk 0:01:51]}  Rfe8 {[%clk 0:00:48]} 17. Nxf5 {[%clk 0:01:41]}  gxf5 {[%clk 0:00:46]} 18. Bb3 {[%clk 0:01:37]}  Qd7 {[%clk 0:00:46]} 19. Bf4 {[%clk 0:01:34]}  e6 {[%clk 0:00:29]} 20. h3 {[%clk 0:01:32]}  Nf6 {[%clk 0:00:29]} 21. Rad1 {[%clk 0:01:29]}  Nd5 {[%clk 0:00:29]} 22. Bh2 {[%clk 0:01:17]}  Na5 {[%clk 0:00:20]} 23. Ne5 {[%clk 0:01:14]}  Qb7 {[%clk 0:00:16]} 24. Bc2 {[%clk 0:01:05]}  Nc6 {[%clk 0:00:16]} 25. d4 {[%clk 0:01:01]}  cxd4 {[%clk 0:00:15]} 26. cxd4 {[%clk 0:01:01]}  Rac8 {[%clk 0:00:15]} 27. Bd3 {[%clk 0:00:56]}  b5 {[%clk 0:00:13]} 28. a3 {[%clk 0:00:53]}  Nxe5 {[%clk 0:00:08]} 29. Bxe5 {[%clk 0:00:51]}  f6 {[%clk 0:00:05]} 30. Bd6 {[%clk 0:00:49]}  Qd7 {[%clk 0:00:06]} 31. Bc5 {[%clk 0:00:47]}  Nf4 {[%clk 0:00:06]} 32. Qf3 {[%clk 0:00:46]}  Nxd3 {[%clk 0:00:05]} 33. Rxd3 {[%clk 0:00:46]}  Qd5 {[%clk 0:00:03]} 34. Qxd5 {[%clk 0:00:44]}  exd5 {[%clk 0:00:03]} 35. Rde3 {[%clk 0:00:43]}  Re4 {[%clk 0:00:02]} 36. f3 {[%clk 0:00:42]}  Rxe3 {[%clk 0:00:02]} 37. Rxe3 {[%clk 0:00:42]}  Rc7 {[%clk 0:00:03]} 38. Re6 {[%clk 0:00:42]}  Bh6 {[%clk 0:00:02]} 39. Kf2 {[%clk 0:00:40]}  a5 {[%clk 0:00:01]} 40. Rxf6 {[%clk 0:00:38]}  Rb7 {[%clk 0:00:01]} 41. Rxh6 {[%clk 0:00:35]} 1-0


[Site "https://www.chess.com"]

[Event "Titled Tuesday Blitz January 31 Early 2023"]
[White "ritanovikova"]
[Black "Turzo, Attila"]
[BlackFideId "704954"]
[WhiteElo "2206"]
[BlackElo "2279"]
[Result "0-1"]
[Round "02"]
[TimeControl "180+2"]
[Date "2023.01.31"]
[WhiteClock "0:00:03"]
[BlackClock "0:00:13"]

1. e4 {[%clk 0:03:00]}  c5 {[%clk 0:02:59]} 2. Nc3 {[%clk 0:03:00]}  Nc6 {[%clk 0:02:58]} 3. d3 {[%clk 0:03:00]}  g6 {[%clk 0:02:57]} 4. Be3 {[%clk 0:03:00]}  d6 {[%clk 0:02:56]} 5. Qd2 {[%clk 0:02:58]}  Bg7 {[%clk 0:02:55]} 6. h4 {[%clk 0:02:57]}  h5 {[%clk 0:02:48]} 7. g3 {[%clk 0:02:57]}  Nf6 {[%clk 0:02:46]} 8. Bg2 {[%clk 0:02:47]}  Ng4 {[%clk 0:02:45]} 9. Bf4 {[%clk 0:02:47]}  e5 {[%clk 0:02:36]} 10. Bg5 {[%clk 0:02:47]}  f6 {[%clk 0:02:33]} 11. Be3 {[%clk 0:02:43]}  Be6 {[%clk 0:02:33]} 12. Nge2 {[%clk 0:02:31]}  Qd7 {[%clk 0:02:31]} 13. Nd5 {[%clk 0:02:30]}  Bxd5 {[%clk 0:02:28]} 14. exd5 {[%clk 0:02:30]}  Ne7 {[%clk 0:02:27]} 15. c3 {[%clk 0:02:23]}  Nf5 {[%clk 0:02:19]} 16. d4 {[%clk 0:02:18]}  cxd4 {[%clk 0:02:07]} 17. cxd4 {[%clk 0:02:19]}  Ngxe3 {[%clk 0:01:52]} 18. fxe3 {[%clk 0:02:15]}  Bh6 {[%clk 0:01:53]} 19. dxe5 {[%clk 0:02:12]}  fxe5 {[%clk 0:01:49]} 20. Bh3 {[%clk 0:02:06]}  Bxe3 {[%clk 0:01:48]} 21. Qd3 {[%clk 0:01:57]}  Bh6 {[%clk 0:01:28]} 22. O-O {[%clk 0:01:50]}  O-O {[%clk 0:01:28]} 23. Rf3 {[%clk 0:01:31]}  Rf7 {[%clk 0:01:19]} 24. Raf1 {[%clk 0:01:30]}  Raf8 {[%clk 0:01:19]} 25. Nc3 {[%clk 0:01:27]}  Kg7 {[%clk 0:01:05]} 26. Ne4 {[%clk 0:01:18]}  Qe7 {[%clk 0:01:05]} 27. Qa3 {[%clk 0:01:15]}  a6 {[%clk 0:00:56]} 28. Bxf5 {[%clk 0:01:13]}  Rxf5 {[%clk 0:00:37]} 29. Rxf5 {[%clk 0:01:09]}  Rxf5 {[%clk 0:00:38]} 30. Rxf5 {[%clk 0:01:09]}  gxf5 {[%clk 0:00:38]} 31. Nxd6 {[%clk 0:01:08]}  Kg6 {[%clk 0:00:36]} 32. Nc4 {[%clk 0:00:58]}  Qxa3 {[%clk 0:00:34]} 33. bxa3 {[%clk 0:00:54]}  Kf6 {[%clk 0:00:30]} 34. d6 {[%clk 0:00:49]}  Bf8 {[%clk 0:00:28]} 35. d7 {[%clk 0:00:45]}  Be7 {[%clk 0:00:28]} 36. Nd6 {[%clk 0:00:44]}  Ke6 {[%clk 0:00:26]} 37. Nxb7 {[%clk 0:00:39]}  Kxd7 {[%clk 0:00:26]} 38. Na5 {[%clk 0:00:37]}  Bxa3 {[%clk 0:00:25]} 39. Nc4 {[%clk 0:00:36]}  Bc5+ {[%clk 0:00:25]} 40. Kg2 {[%clk 0:00:36]}  Ke6 {[%clk 0:00:25]} 41. Kf3 {[%clk 0:00:34]}  Kd5 {[%clk 0:00:26]} 42. Nd2 {[%clk 0:00:32]}  Bd6 {[%clk 0:00:25]} 43. Nb3 {[%clk 0:00:32]}  e4+ {[%clk 0:00:25]} 44. Kf2 {[%clk 0:00:31]}  Bc5+ {[%clk 0:00:25]} 45. Ke2 {[%clk 0:00:30]}  Bb4 {[%clk 0:00:23]} 46. Ke3 {[%clk 0:00:28]}  Bd6 {[%clk 0:00:23]} 47. Kf2 {[%clk 0:00:27]}  f4 {[%clk 0:00:24]} 48. gxf4 {[%clk 0:00:24]}  Bxf4 {[%clk 0:00:25]} 49. Ke2 {[%clk 0:00:20]}  Bg3 {[%clk 0:00:24]} 50. Ke3 {[%clk 0:00:20]}  Bxh4 {[%clk 0:00:23]} 51. Na5 {[%clk 0:00:20]}  Bg5+ {[%clk 0:00:24]} 52. Ke2 {[%clk 0:00:19]}  h4 {[%clk 0:00:24]} 53. Nb3 {[%clk 0:00:16]}  h3 {[%clk 0:00:24]} 54. Kf1 {[%clk 0:00:16]}  e3 {[%clk 0:00:24]} 55. Nc1 {[%clk 0:00:14]}  Ke4 {[%clk 0:00:23]} 56. Ne2 {[%clk 0:00:14]}  Bh4 {[%clk 0:00:22]} 57. Nc3+ {[%clk 0:00:13]}  Kd3 {[%clk 0:00:22]} 58. Ne2 {[%clk 0:00:14]}  h2 {[%clk 0:00:23]} 59. Nf4+ {[%clk 0:00:12]}  Kd2 {[%clk 0:00:23]} 60. Kg2 {[%clk 0:00:11]}  Bg3 {[%clk 0:00:15]} 61. Nh5 {[%clk 0:00:02]}  e2 {[%clk 0:00:15]} 62. Nxg3 {[%clk 0:00:02]}  e1=Q {[%clk 0:00:14]} 63. Nf1+ {[%clk 0:00:02]}  Qxf1+ {[%clk 0:00:13]} 64. Kxf1 {[%clk 0:00:02]}  h1=Q+ {[%clk 0:00:13]} 65. Kf2 {[%clk 0:00:03]}  Qa1 {[%clk 0:00:13]} 0-1


[Site "https://www.chess.com"]

[Event "Titled Tuesday Blitz January 31 Early 2023"]
[White "Marin Ramirez, Gerardo"]
[Black "Bambino Filho, Antonio Carlos"]
[WhiteFideId "3901068"]
[BlackFideId "2113163"]
[WhiteElo "2127"]
[BlackElo "2144"]
[Result "0-1"]
[Round "02"]
[TimeControl "180+2"]
[Date "2023.01.31"]
[WhiteClock "0:00:01"]
[BlackClock "0:00:30"]

1. d4 {[%clk 0:02:59]}  Nf6 {[%clk 0:02:59]} 2. Nf3 {[%clk 0:02:55]}  c5 {[%clk 0:02:59]} 3. c4 {[%clk 0:02:52]}  cxd4 {[%clk 0:02:58]} 4. Nxd4 {[%clk 0:02:51]}  e5 {[%clk 0:02:57]} 5. Nc2 {[%clk 0:02:48]}  d5 {[%clk 0:02:55]} 6. cxd5 {[%clk 0:02:43]}  Qxd5 {[%clk 0:02:46]} 7. Bd2 {[%clk 0:02:39]}  Nc6 {[%clk 0:02:35]} 8. Nc3 {[%clk 0:02:38]}  Qd8 {[%clk 0:02:35]} 9. e4 {[%clk 0:02:37]}  h6 {[%clk 0:02:28]} 10. Bc4 {[%clk 0:02:34]}  Bc5 {[%clk 0:02:24]} 11. O-O {[%clk 0:02:31]}  O-O {[%clk 0:02:24]} 12. Be3 {[%clk 0:02:08]}  Be7 {[%clk 0:02:24]} 13. f3 {[%clk 0:01:58]}  Be6 {[%clk 0:02:20]} 14. Nd5 {[%clk 0:01:57]}  Na5 {[%clk 0:02:10]} 15. Nxe7+ {[%clk 0:01:49]}  Qxe7 {[%clk 0:02:09]} 16. Be2 {[%clk 0:01:36]}  Rfd8 {[%clk 0:02:08]} 17. Qe1 {[%clk 0:01:33]}  b6 {[%clk 0:02:04]} 18. b3 {[%clk 0:01:25]}  Rac8 {[%clk 0:02:02]} 19. Nb4 {[%clk 0:01:22]}  Nc6 {[%clk 0:01:58]} 20. Nxc6 {[%clk 0:01:16]}  Rxc6 {[%clk 0:01:59]} 21. Rc1 {[%clk 0:01:14]}  Rdc8 {[%clk 0:01:59]} 22. Qd2 {[%clk 0:01:12]}  Qa3 {[%clk 0:01:54]} 23. Rxc6 {[%clk 0:01:09]}  Rxc6 {[%clk 0:01:54]} 24. Rd1 {[%clk 0:00:59]}  Kh7 {[%clk 0:01:54]} 25. Bf1 {[%clk 0:00:46]}  Ne8 {[%clk 0:01:42]} 26. Qd8 {[%clk 0:00:31]}  Nf6 {[%clk 0:01:39]} 27. Qd2 {[%clk 0:00:21]}  Rc7 {[%clk 0:01:25]} 28. g4 {[%clk 0:00:21]}  Rd7 {[%clk 0:01:24]} 29. Bd3 {[%clk 0:00:18]}  Ne8 {[%clk 0:01:13]} 30. Qc2 {[%clk 0:00:18]}  Rc7 {[%clk 0:01:10]} 31. Qe2 {[%clk 0:00:16]}  Rd7 {[%clk 0:00:57]} 32. Bc1 {[%clk 0:00:13]}  Qc5+ {[%clk 0:00:53]} 33. Be3 {[%clk 0:00:11]}  Qa3 {[%clk 0:00:54]} 34. Bc1 {[%clk 0:00:10]}  Qe7 {[%clk 0:00:55]} 35. Be3 {[%clk 0:00:07]}  Nf6 {[%clk 0:00:53]} 36. Qb2 {[%clk 0:00:06]}  Qd8 {[%clk 0:00:46]} 37. Qc2 {[%clk 0:00:03]}  Rd6 {[%clk 0:00:39]} 38. Be2 {[%clk 0:00:04]}  Ne8 {[%clk 0:00:33]} 39. Rxd6 {[%clk 0:00:04]}  Qxd6 {[%clk 0:00:34]} 40. Kg2 {[%clk 0:00:03]}  Bd7 {[%clk 0:00:30]} 41. a4 {[%clk 0:00:01]}  Bc6 {[%clk 0:00:30]} 0-1


[Site "https://www.chess.com"]

[Event "Titled Tuesday Blitz January 31 Early 2023"]
[White "Ruge, Edison"]
[Black "Mujumdar, Sameer"]
[WhiteFideId "4401000"]
[BlackFideId "2029707"]
[WhiteElo "2201"]
[BlackElo "1992"]
[Result "0-1"]
[Round "02"]
[TimeControl "180+2"]
[Date "2023.01.31"]
[WhiteClock "0:01:12"]
[BlackClock "0:01:14"]

1. e4 {[%clk 0:03:00]}  c5 {[%clk 0:02:59]} 2. Nf3 {[%clk 0:02:57]}  d6 {[%clk 0:02:59]} 3. d3 {[%clk 0:02:58]}  Nf6 {[%clk 0:02:58]} 4. g3 {[%clk 0:02:58]}  Nc6 {[%clk 0:02:58]} 5. Bg2 {[%clk 0:02:59]}  g6 {[%clk 0:02:59]} 6. O-O {[%clk 0:02:59]}  Bg7 {[%clk 0:02:59]} 7. h3 {[%clk 0:02:59]}  O-O {[%clk 0:03:00]} 8. c3 {[%clk 0:02:59]}  Rb8 {[%clk 0:03:00]} 9. Nbd2 {[%clk 0:03:00]}  b5 {[%clk 0:03:01]} 10. Re1 {[%clk 0:03:00]}  b4 {[%clk 0:03:01]} 11. e5 {[%clk 0:03:00]}  dxe5 {[%clk 0:02:57]} 12. Nxe5 {[%clk 0:02:56]}  Nxe5 {[%clk 0:02:57]} 13. Rxe5 {[%clk 0:02:55]}  Qxd3 {[%clk 0:02:52]} 14. Bf1 {[%clk 0:02:44]}  Qd6 {[%clk 0:02:47]} 15. Qe2 {[%clk 0:02:40]}  bxc3 {[%clk 0:02:44]} 16. bxc3 {[%clk 0:02:37]}  Nd5 {[%clk 0:02:40]} 17. Nc4 {[%clk 0:02:36]}  Qd8 {[%clk 0:02:32]} 18. Rxd5 {[%clk 0:02:26]}  Qxd5 {[%clk 0:02:31]} 19. Bg2 {[%clk 0:02:27]}  Qe6 {[%clk 0:02:29]} 20. Be3 {[%clk 0:02:13]}  Ba6 {[%clk 0:02:25]} 21. Bf1 {[%clk 0:02:09]}  Rfd8 {[%clk 0:02:20]} 22. Qg4 {[%clk 0:01:55]}  Qxg4 {[%clk 0:02:17]} 23. hxg4 {[%clk 0:01:55]}  Bxc3 {[%clk 0:02:16]} 24. Rc1 {[%clk 0:01:54]}  Bd4 {[%clk 0:02:17]} 25. Bf4 {[%clk 0:01:53]}  Rb4 {[%clk 0:02:12]} 26. Na5 {[%clk 0:01:49]}  Bxf1 {[%clk 0:02:11]} 27. Nc6 {[%clk 0:01:46]}  Bb5 {[%clk 0:01:48]} 28. Nxd8 {[%clk 0:01:43]}  e5 {[%clk 0:01:39]} 29. Bh6 {[%clk 0:01:39]}  Bd7 {[%clk 0:01:34]} 30. Bg5 {[%clk 0:01:34]}  Kg7 {[%clk 0:01:33]} 31. Be7 {[%clk 0:01:33]}  Rb2 {[%clk 0:01:27]} 32. g5 {[%clk 0:01:24]}  Bxf2+ {[%clk 0:01:26]} 33. Kh1 {[%clk 0:01:22]}  Bf5 {[%clk 0:01:23]} 34. Bf6+ {[%clk 0:01:21]}  Kg8 {[%clk 0:01:22]} 35. Bxe5 {[%clk 0:01:12]}  Be4+ {[%clk 0:01:21]} 36. Kh2 {[%clk 0:01:12]}  Bd4+ {[%clk 0:01:15]} 37. Kh3 {[%clk 0:01:12]}  Bxe5 {[%clk 0:01:14]} 0-1


[Site "https://www.chess.com"]

[Event "Titled Tuesday Blitz January 31 Early 2023"]
[White "Hertlein, Irena"]
[Black "Matt, Fabian"]
[WhiteFideId "21817618"]
[BlackFideId "1623303"]
[WhiteElo "1994"]
[BlackElo "2308"]
[Result "0-1"]
[Round "02"]
[TimeControl "180+2"]
[Date "2023.01.31"]
[WhiteClock "0:00:12"]
[BlackClock "0:00:34"]

1. Nf3 {[%clk 0:03:00]}  d5 {[%clk 0:02:57]} 2. e3 {[%clk 0:03:00]}  Nf6 {[%clk 0:02:57]} 3. c4 {[%clk 0:03:00]}  e6 {[%clk 0:02:57]} 4. b3 {[%clk 0:03:00]}  c5 {[%clk 0:02:50]} 5. Bb2 {[%clk 0:02:58]}  a6 {[%clk 0:02:46]} 6. Be2 {[%clk 0:02:53]}  Nc6 {[%clk 0:02:46]} 7. cxd5 {[%clk 0:02:52]}  exd5 {[%clk 0:02:45]} 8. O-O {[%clk 0:02:38]}  d4 {[%clk 0:02:31]} 9. exd4 {[%clk 0:02:38]}  cxd4 {[%clk 0:02:32]} 10. Re1 {[%clk 0:02:37]}  Be7 {[%clk 0:02:31]} 11. Bd3 {[%clk 0:02:32]}  O-O {[%clk 0:02:27]} 12. Na3 {[%clk 0:02:31]}  Re8 {[%clk 0:02:19]} 13. Nc2 {[%clk 0:02:17]}  Bg4 {[%clk 0:02:18]} 14. h3 {[%clk 0:02:16]}  Bh5 {[%clk 0:01:55]} 15. g4 {[%clk 0:01:48]}  Nxg4 {[%clk 0:01:41]} 16. hxg4 {[%clk 0:01:46]}  Bxg4 {[%clk 0:01:42]} 17. Re4 {[%clk 0:01:40]}  Bf5 {[%clk 0:01:34]} 18. Qe2 {[%clk 0:01:36]}  Bxe4 {[%clk 0:01:28]} 19. Qxe4 {[%clk 0:01:35]}  g6 {[%clk 0:01:28]} 20. Ncxd4 {[%clk 0:01:24]}  Ba3 {[%clk 0:01:14]} 21. Qxe8+ {[%clk 0:00:43]}  Qxe8 {[%clk 0:01:11]} 22. Bxa3 {[%clk 0:00:43]}  Nxd4 {[%clk 0:01:03]} 23. Nxd4 {[%clk 0:00:41]}  Rd8 {[%clk 0:01:03]} 24. Bb2 {[%clk 0:00:38]}  Qe5 {[%clk 0:00:55]} 25. Rc1 {[%clk 0:00:20]}  Rxd4 {[%clk 0:00:51]} 26. Rc8+ {[%clk 0:00:20]}  Kg7 {[%clk 0:00:51]} 27. Rc4 {[%clk 0:00:20]}  Rg4+ {[%clk 0:00:43]} 28. Rxg4 {[%clk 0:00:20]}  Qxb2 {[%clk 0:00:44]} 29. Bc4 {[%clk 0:00:15]}  Qxd2 {[%clk 0:00:41]} 30. Re4 {[%clk 0:00:15]}  b5 {[%clk 0:00:35]} 31. Bf1 {[%clk 0:00:12]}  Qxa2 {[%clk 0:00:34]} 0-1


[Site "https://www.chess.com"]

[Event "Titled Tuesday Blitz January 31 Early 2023"]
[White "Michalski, Olaf"]
[Black "Myshakov, Fyodor"]
[WhiteFideId "1106740"]
[BlackFideId "14111284"]
[WhiteElo "2273"]
[BlackElo "2292"]
[Result "1-0"]
[Round "02"]
[TimeControl "180+2"]
[Date "2023.01.31"]
[WhiteClock "0:00:13"]
[BlackClock "0:00:33"]

1. d4 {[%clk 0:03:00]}  d5 {[%clk 0:02:59]} 2. c4 {[%clk 0:02:58]}  dxc4 {[%clk 0:02:59]} 3. Nf3 {[%clk 0:02:54]}  Nf6 {[%clk 0:02:59]} 4. e3 {[%clk 0:02:51]}  e6 {[%clk 0:02:59]} 5. Bxc4 {[%clk 0:02:51]}  c5 {[%clk 0:02:57]} 6. O-O {[%clk 0:02:48]}  a6 {[%clk 0:02:53]} 7. a4 {[%clk 0:02:47]}  Nc6 {[%clk 0:02:52]} 8. Nc3 {[%clk 0:02:33]}  cxd4 {[%clk 0:02:50]} 9. exd4 {[%clk 0:02:30]}  Nb4 {[%clk 0:02:50]} 10. Re1 {[%clk 0:01:23]}  Be7 {[%clk 0:02:48]} 11. Qb3 {[%clk 0:01:11]}  O-O {[%clk 0:02:44]} 12. Bg5 {[%clk 0:01:10]}  Nbd5 {[%clk 0:02:40]} 13. Rad1 {[%clk 0:01:06]}  Bd7 {[%clk 0:02:39]} 14. Bxf6 {[%clk 0:00:47]}  Nxf6 {[%clk 0:02:35]} 15. Qxb7 {[%clk 0:00:45]}  Rb8 {[%clk 0:02:05]} 16. Qxa6 {[%clk 0:00:44]}  Bc8 {[%clk 0:02:05]} 17. Qa7 {[%clk 0:00:28]}  Rb7 {[%clk 0:02:03]} 18. Qa8 {[%clk 0:00:28]}  Rxb2 {[%clk 0:01:22]} 19. Ne5 {[%clk 0:00:28]}  Qc7 {[%clk 0:01:19]} 20. Nb5 {[%clk 0:00:23]}  Rxb5 {[%clk 0:01:04]} 21. Bxb5 {[%clk 0:00:20]}  Bb7 {[%clk 0:01:03]} 22. Qa7 {[%clk 0:00:08]}  Ra8 {[%clk 0:01:02]} 23. Rc1 {[%clk 0:00:05]}  Rxa7 {[%clk 0:00:54]} 24. Rxc7 {[%clk 0:00:05]}  Bd8 {[%clk 0:00:55]} 25. Rcc1 {[%clk 0:00:03]}  Ba5 {[%clk 0:00:55]} 26. Red1 {[%clk 0:00:03]}  g6 {[%clk 0:00:55]} 27. Nc6 {[%clk 0:00:03]}  Bxc6 {[%clk 0:00:54]} 28. Rxc6 {[%clk 0:00:03]}  Nd5 {[%clk 0:00:53]} 29. Ra6 {[%clk 0:00:03]}  Bb6 {[%clk 0:00:51]} 30. Rxa7 {[%clk 0:00:03]}  Bxa7 {[%clk 0:00:52]} 31. Rc1 {[%clk 0:00:03]}  Bxd4 {[%clk 0:00:51]} 32. Rc8+ {[%clk 0:00:03]}  Kg7 {[%clk 0:00:51]} 33. a5 {[%clk 0:00:03]}  Nc3 {[%clk 0:00:50]} 34. Bc4 {[%clk 0:00:02]}  Na4 {[%clk 0:00:48]} 35. a6 {[%clk 0:00:03]}  Bb6 {[%clk 0:00:44]} 36. Rc6 {[%clk 0:00:02]}  Bd4 {[%clk 0:00:42]} 37. Rc7 {[%clk 0:00:02]}  Be5 {[%clk 0:00:39]} 38. a7 {[%clk 0:00:02]}  Nb6 {[%clk 0:00:40]} 39. Rb7 {[%clk 0:00:02]}  Na8 {[%clk 0:00:38]} 40. Bxe6 {[%clk 0:00:03]}  Kh6 {[%clk 0:00:36]} 41. Bxf7 {[%clk 0:00:03]}  Bd4 {[%clk 0:00:36]} 42. Bg8 {[%clk 0:00:03]}  Kg5 {[%clk 0:00:36]} 43. Bxh7 {[%clk 0:00:03]}  Kf6 {[%clk 0:00:36]} 44. Bg8 {[%clk 0:00:03]}  g5 {[%clk 0:00:36]} 45. Bc4 {[%clk 0:00:04]}  g4 {[%clk 0:00:37]} 46. Kf1 {[%clk 0:00:05]}  Ke5 {[%clk 0:00:37]} 47. Ke2 {[%clk 0:00:05]}  Kd6 {[%clk 0:00:37]} 48. Kd3 {[%clk 0:00:05]}  Bxf2 {[%clk 0:00:37]} 49. Rh7 {[%clk 0:00:05]}  Bg1 {[%clk 0:00:36]} 50. Ke4 {[%clk 0:00:05]}  Kc5 {[%clk 0:00:34]} 51. Bd5 {[%clk 0:00:05]}  Nb6 {[%clk 0:00:33]} 52. Bb7 {[%clk 0:00:05]}  Kd6 {[%clk 0:00:32]} 53. a8=Q {[%clk 0:00:05]}  Nxa8 {[%clk 0:00:32]} 54. Bxa8 {[%clk 0:00:06]}  Ke6 {[%clk 0:00:33]} 55. Bd5+ {[%clk 0:00:06]}  Kf6 {[%clk 0:00:33]} 56. Rh4 {[%clk 0:00:06]}  Kg5 {[%clk 0:00:34]} 57. Rh8 {[%clk 0:00:06]}  Kg6 {[%clk 0:00:33]} 58. Kf4 {[%clk 0:00:07]}  Kg7 {[%clk 0:00:33]} 59. Rh4 {[%clk 0:00:07]}  Kf6 {[%clk 0:00:32]} 60. Kxg4 {[%clk 0:00:08]}  Bf2 {[%clk 0:00:32]} 61. Bf3 {[%clk 0:00:08]}  Be3 {[%clk 0:00:31]} 62. Kh5 {[%clk 0:00:08]}  Kg7 {[%clk 0:00:31]} 63. Rg4+ {[%clk 0:00:08]}  Kf6 {[%clk 0:00:32]} 64. h4 {[%clk 0:00:08]}  Bd2 {[%clk 0:00:32]} 65. Rg6+ {[%clk 0:00:09]}  Kf7 {[%clk 0:00:32]} 66. Ra6 {[%clk 0:00:10]}  Kg7 {[%clk 0:00:33]} 67. g4 {[%clk 0:00:10]}  Be3 {[%clk 0:00:33]} 68. g5 {[%clk 0:00:10]}  Bf2 {[%clk 0:00:34]} 69. Be4 {[%clk 0:00:10]}  Kf7 {[%clk 0:00:34]} 70. Ra7+ {[%clk 0:00:11]}  Ke6 {[%clk 0:00:34]} 71. g6 {[%clk 0:00:11]}  Bxa7 {[%clk 0:00:33]} 72. g7 {[%clk 0:00:10]}  Kf7 {[%clk 0:00:33]} 73. Kh6 {[%clk 0:00:11]}  Be3+ {[%clk 0:00:24]} 74. Kh7 {[%clk 0:00:10]}  Kf6 {[%clk 0:00:24]} 75. g8=Q {[%clk 0:00:10]}  Ke5 {[%clk 0:00:25]} 76. Qe8+ {[%clk 0:00:10]}  Kd4 {[%clk 0:00:25]} 77. Bh1 {[%clk 0:00:10]}  Bd2 {[%clk 0:00:25]} 78. Qe4+ {[%clk 0:00:10]}  Kc3 {[%clk 0:00:26]} 79. Qc6+ {[%clk 0:00:09]}  Kd4 {[%clk 0:00:26]} 80. Qd7+ {[%clk 0:00:09]}  Ke3 {[%clk 0:00:27]} 81. h5 {[%clk 0:00:09]}  Kf2 {[%clk 0:00:27]} 82. h6 {[%clk 0:00:09]}  Be3 {[%clk 0:00:28]} 83. Qf7+ {[%clk 0:00:09]}  Ke2 {[%clk 0:00:29]} 84. Kg6 {[%clk 0:00:09]}  Bd4 {[%clk 0:00:29]} 85. h7 {[%clk 0:00:10]}  Kd2 {[%clk 0:00:30]} 86. Qd7 {[%clk 0:00:10]}  Kc3 {[%clk 0:00:31]} 87. Qxd4+ {[%clk 0:00:10]}  Kxd4 {[%clk 0:00:31]} 88. h8=Q+ {[%clk 0:00:11]}  Ke3 {[%clk 0:00:32]} 89. Qe8+ {[%clk 0:00:11]}  Kf4 {[%clk 0:00:33]} 90. Qb5 {[%clk 0:00:10]}  Kg4 {[%clk 0:00:33]} 91. Qb4+ {[%clk 0:00:10]}  Kg3 {[%clk 0:00:34]} 92. Bb7 {[%clk 0:00:10]}  Kf2 {[%clk 0:00:34]} 93. Kf5 {[%clk 0:00:10]}  Ke3 {[%clk 0:00:34]} 94. Qc4 {[%clk 0:00:10]}  Kd2 {[%clk 0:00:35]} 95. Qb3 {[%clk 0:00:10]}  Kc1 {[%clk 0:00:35]} 96. Qa2 {[%clk 0:00:10]}  Kd1 {[%clk 0:00:35]} 97. Kf4 {[%clk 0:00:11]}  Kc1 {[%clk 0:00:35]} 98. Kf3 {[%clk 0:00:12]}  Kd1 {[%clk 0:00:34]} 99. Ke3 {[%clk 0:00:12]}  Kc1 {[%clk 0:00:33]} 100. Kd3 {[%clk 0:00:13]} 1-0


[Site "https://www.chess.com"]

[Event "Titled Tuesday Blitz January 31 Early 2023"]
[White "Bas Mas, Jose Joaquin"]
[Black "Tuleyeva-Aketayeva, Dana"]
[WhiteFideId "22219064"]
[BlackFideId "13701932"]
[WhiteElo "2197"]
[BlackElo "2130"]
[Result "1-0"]
[Round "02"]
[TimeControl "180+2"]
[Date "2023.01.31"]
[WhiteClock "0:01:02"]
[BlackClock "0:00:01"]

1. e4 {[%clk 0:03:00]}  c5 {[%clk 0:02:59]} 2. Nf3 {[%clk 0:03:00]}  Nc6 {[%clk 0:02:59]} 3. Nc3 {[%clk 0:02:57]}  g6 {[%clk 0:02:59]} 4. Bb5 {[%clk 0:02:57]}  Bg7 {[%clk 0:02:59]} 5. O-O {[%clk 0:02:53]}  a6 {[%clk 0:02:54]} 6. Bxc6 {[%clk 0:02:48]}  dxc6 {[%clk 0:02:54]} 7. Re1 {[%clk 0:02:47]}  Nf6 {[%clk 0:02:53]} 8. d3 {[%clk 0:02:47]}  Bg4 {[%clk 0:02:50]} 9. h3 {[%clk 0:02:47]}  Bxf3 {[%clk 0:02:49]} 10. Qxf3 {[%clk 0:02:48]}  O-O {[%clk 0:02:49]} 11. Bd2 {[%clk 0:02:40]}  c4 {[%clk 0:02:49]} 12. Rad1 {[%clk 0:02:30]}  cxd3 {[%clk 0:02:49]} 13. cxd3 {[%clk 0:02:31]}  Nd7 {[%clk 0:02:47]} 14. Bg5 {[%clk 0:02:28]}  h6 {[%clk 0:02:43]} 15. Bf4 {[%clk 0:02:27]}  Ne5 {[%clk 0:02:36]} 16. Qg3 {[%clk 0:02:25]}  Nd7 {[%clk 0:02:26]} 17. d4 {[%clk 0:02:24]}  Qb6 {[%clk 0:02:14]} 18. e5 {[%clk 0:02:13]}  g5 {[%clk 0:01:55]} 19. Bc1 {[%clk 0:02:12]}  Qc7 {[%clk 0:01:44]} 20. h4 {[%clk 0:01:56]}  f6 {[%clk 0:01:15]} 21. Ne4 {[%clk 0:01:47]}  f5 {[%clk 0:00:59]} 22. hxg5 {[%clk 0:01:45]}  h5 {[%clk 0:00:30]} 23. Qb3+ {[%clk 0:01:39]}  Kh7 {[%clk 0:00:21]} 24. Ng3 {[%clk 0:01:39]}  Kg6 {[%clk 0:00:20]} 25. Qe6+ {[%clk 0:01:35]}  Kh7 {[%clk 0:00:18]} 26. Nxh5 {[%clk 0:01:24]}  Nb6 {[%clk 0:00:15]} 27. Re3 {[%clk 0:01:07]}  Qd7 {[%clk 0:00:14]} 28. Nxg7 {[%clk 0:01:05]}  Kxg7 {[%clk 0:00:11]} 29. Qh6+ {[%clk 0:01:05]}  Kf7 {[%clk 0:00:10]} 30. e6+ {[%clk 0:01:04]}  Ke8 {[%clk 0:00:02]} 31. exd7+ {[%clk 0:01:04]}  Kxd7 {[%clk 0:00:03]} 32. Rde1 {[%clk 0:01:03]}  Rae8 {[%clk 0:00:01]} 33. Qe6+ {[%clk 0:01:02]}  Kd8 {[%clk 0:00:01]} 34. g6 {[%clk 0:01:01]}  Nd5 {[%clk 0:00:01]} 35. g7 {[%clk 0:01:02]} 1-0


[Site "https://www.chess.com"]